[Event "*** Titled Tuesday Blitz"]
[Site "Chess.com"]
[Date "2019.07.02"]
[Round "6"]
[White "Barrelius"]
[Black "DrVitman"]
[Result "1-0"]
[WhiteElo "2624"]
[BlackElo "2690"]
[TimeControl "180+2"]
[EndTime "14:25:00 PDT"]
[Termination "Barrelius won by resignation"]

1. Nf3 {[%clk 0:03:01.9]} 1... Nf6 {[%clk 0:02:59]} 2. c4 {[%clk 0:03:03]} 2...
e6 {[%clk 0:02:58.8]} 3. Nc3 {[%clk 0:03:03.3]} 3... d5 {[%clk 0:03:00.2]} 4. d4
{[%clk 0:03:04.4]} 4... Nbd7 {[%clk 0:03:01]} 5. cxd5 {[%clk 0:03:04.9]} 5...
exd5 {[%clk 0:03:01.8]} 6. Bf4 {[%clk 0:03:06.1]} 6... c6 {[%clk 0:03:02.8]} 7.
e3 {[%clk 0:03:04.1]} 7... Be7 {[%clk 0:03:04.2]} 8. Bd3 {[%clk 0:03:04.3]} 8...
Nf8 {[%clk 0:03:05.6]} 9. O-O {[%clk 0:03:00]} 9... Bg4 {[%clk 0:03:06.2]} 10.
h3 {[%clk 0:02:57.9]} 10... Bh5 {[%clk 0:03:06]} 11. Rb1 {[%clk 0:02:53.1]}
11... Ne6 {[%clk 0:03:04]} 12. Be5 {[%clk 0:02:50.5]} 12... Bd6 {[%clk
0:03:04.2]} 13. Bxd6 {[%clk 0:02:43.9]} 13... Qxd6 {[%clk 0:03:06.1]} 14. b4
{[%clk 0:02:42.8]} 14... a6 {[%clk 0:02:59]} 15. a4 {[%clk 0:02:42]} 15... O-O
{[%clk 0:02:49.7]} 16. Be2 {[%clk 0:02:39.8]} 16... Bxf3 {[%clk 0:02:46.8]} 17.
Bxf3 {[%clk 0:02:40.4]} 17... b5 {[%clk 0:02:45]} 18. a5 {[%clk 0:02:38]} 18...
Rae8 {[%clk 0:02:35.2]} 19. Na2 {[%clk 0:02:38]} 19... Ng5 {[%clk 0:02:24.5]}
20. Nc1 {[%clk 0:02:35.3]} 20... Nfe4 {[%clk 0:02:20.9]} 21. Rb3 {[%clk
0:02:22.2]} 21... Nxf3+ {[%clk 0:02:19.8]} 22. gxf3 {[%clk 0:02:04.3]} 22...
Qg6+ {[%clk 0:02:00.6]} 23. Kh2 {[%clk 0:01:59.8]} 23... Qd6+ {[%clk 0:01:55]}
24. Kg2 {[%clk 0:01:54.3]} 24... Ng5 {[%clk 0:01:46.4]} 25. f4 {[%clk
0:01:51.8]} 25... Ne4 {[%clk 0:01:44]} 26. Nd3 {[%clk 0:01:48.7]} 26... Qg6+
{[%clk 0:01:36]} 27. Kh2 {[%clk 0:01:47.8]} 27... Qh6 {[%clk 0:01:23.2]} 28. Rg1
{[%clk 0:01:45.3]} 28... f6 {[%clk 0:01:21.8]} 29. Rb2 {[%clk 0:01:35.4]} 29...
Nd6 {[%clk 0:01:18.2]} 30. Rc2 {[%clk 0:01:28.1]} 30... Nc4 {[%clk 0:01:18.3]}
31. Qg4 {[%clk 0:01:20.8]} 31... f5 {[%clk 0:00:48.5]} 32. Qf3 {[%clk
0:01:14.5]} 32... Rf6 {[%clk 0:00:36.9]} 33. Rg5 {[%clk 0:01:11.5]} 33... g6
{[%clk 0:00:33.1]} 34. Nc5 {[%clk 0:01:00.6]} 34... Ra8 {[%clk 0:00:30.8]} 35.
Rc1 {[%clk 0:00:54.3]} 35... Nd2 {[%clk 0:00:19.3]} 36. Qe2 {[%clk 0:00:53.7]}
36... Ne4 {[%clk 0:00:19.8]} 37. Nxe4 {[%clk 0:00:50.9]} 37... dxe4 {[%clk
0:00:17.5]} 38. Rc5 {[%clk 0:00:47.5]} 38... Rd8 {[%clk 0:00:17.5]} 39. Qc2
{[%clk 0:00:45.1]} 39... Rdd6 {[%clk 0:00:17.9]} 40. Re5 {[%clk 0:00:46.1]}
40... Qf8 {[%clk 0:00:15.3]} 41. Qc5 {[%clk 0:00:46.3]} 41... Rde6 {[%clk
0:00:10.6]} 42. Qc3 {[%clk 0:00:30.5]} 42... Qd6 {[%clk 0:00:06.3]} 43. Rg1
{[%clk 0:00:28.6]} 43... Kf7 {[%clk 0:00:05.5]} 44. Rc5 {[%clk 0:00:28.9]} 44...
Qd7 {[%clk 0:00:04.2]} 45. h4 {[%clk 0:00:28.7]} 45... Rd6 {[%clk 0:00:05.1]}
46. Kh3 {[%clk 0:00:28.8]} 46... Rd5 {[%clk 0:00:03.9]} 47. Rc1 {[%clk
0:00:28.9]} 47... Rdd6 {[%clk 0:00:04.6]} 48. Qb3+ {[%clk 0:00:27.3]} 48... Rfe6
{[%clk 0:00:04.2]} 49. Re5 {[%clk 0:00:27.6]} 49... Rd5 {[%clk 0:00:04.8]} 50.
Rxd5 {[%clk 0:00:27.6]} 50... cxd5 {[%clk 0:00:06.3]} 51. Rc5 {[%clk 0:00:27.8]}
51... Rd6 {[%clk 0:00:07.6]} 52. Qc3 {[%clk 0:00:29.1]} 52... Ke6 {[%clk
0:00:08.8]} 53. Rc7 {[%clk 0:00:29]} 53... Qe8 {[%clk 0:00:08.7]} 54. Qc5 {[%clk
0:00:26.8]} 54... h6 {[%clk 0:00:08.5]} 55. Rb7 {[%clk 0:00:16.6]} 55... g5
{[%clk 0:00:08.6]} 56. Rb6 {[%clk 0:00:14.6]} 56... g4+ {[%clk 0:00:08.8]} 57.
Kg3 {[%clk 0:00:15.7]} 57... Qd7 {[%clk 0:00:09.2]} 58. h5 {[%clk 0:00:12.8]}
58... Rxb6 {[%clk 0:00:08.3]} 59. axb6 {[%clk 0:00:13.1]} 59... Qb7 {[%clk
0:00:09.2]} 60. Kg2 {[%clk 0:00:10.3]} 60... Kd7 {[%clk 0:00:09.6]} 61. Kf1
{[%clk 0:00:09.9]} 61... Qc6 {[%clk 0:00:09.9]} 62. Ke1 {[%clk 0:00:10]} 62...
Qxc5 {[%clk 0:00:09.6]} 63. dxc5 {[%clk 0:00:11.2]} 63... Kc6 {[%clk 0:00:06.4]}
64. Kd2 {[%clk 0:00:12.2]} 64... Kd7 {[%clk 0:00:06.4]} 65. Kc3 {[%clk
0:00:12.6]} 65... Kc6 {[%clk 0:00:07.5]} 66. Kd4 {[%clk 0:00:13.4]} 66... Kd7
{[%clk 0:00:07.1]} 67. Kxd5 {[%clk 0:00:14]} 67... Kc8 {[%clk 0:00:08.7]} 68. c6
{[%clk 0:00:13.5]} 68... Kb8 {[%clk 0:00:10.2]} 69. Kd6 {[%clk 0:00:10.5]} 69...
Kc8 {[%clk 0:00:10.5]} 70. b7+ {[%clk 0:00:11.3]} 70... Kb8 {[%clk 0:00:11.9]}
71. Kd7 {[%clk 0:00:12.4]} 1-0

[Event "*** Titled Tuesday Blitz"]
[Site "Chess.com"]
[Date "2019.07.02"]
[Round "6"]
[White "NemtsevIgor"]
[Black "riconaipe"]
[Result "0-1"]
[WhiteElo "2292"]
[BlackElo "2494"]
[TimeControl "180+2"]
[EndTime "14:25:03 PDT"]
[Termination "riconaipe won by checkmate"]

1. e4 {[%clk 0:03:01.9]} 1... c6 {[%clk 0:02:59.2]} 2. d4 {[%clk 0:03:02.2]}
2... d5 {[%clk 0:03:00.9]} 3. Be3 {[%clk 0:03:03.6]} 3... dxe4 {[%clk 0:03:01]}
4. f3 {[%clk 0:03:04.9]} 4... Nf6 {[%clk 0:02:56.5]} 5. Nc3 {[%clk 0:03:05.2]}
5... Bf5 {[%clk 0:02:55.1]} 6. g4 {[%clk 0:03:06.2]} 6... Bg6 {[%clk 0:02:55.7]}
7. h4 {[%clk 0:03:07.4]} 7... h5 {[%clk 0:02:56.3]} 8. g5 {[%clk 0:03:07.4]}
8... Nd5 {[%clk 0:02:57.8]} 9. Qd2 {[%clk 0:03:06.2]} 9... Nxc3 {[%clk
0:02:41.2]} 10. bxc3 {[%clk 0:03:05.7]} 10... Nd7 {[%clk 0:02:38.9]} 11. Bg2
{[%clk 0:02:51.4]} 11... exf3 {[%clk 0:02:26]} 12. Nxf3 {[%clk 0:02:52.5]} 12...
e6 {[%clk 0:02:26.7]} 13. O-O {[%clk 0:02:49.4]} 13... Bd6 {[%clk 0:02:26.5]}
14. Rab1 {[%clk 0:02:44]} 14... Nb6 {[%clk 0:02:22.3]} 15. Bf4 {[%clk
0:02:29.2]} 15... Nc4 {[%clk 0:01:58.9]} 16. Qc1 {[%clk 0:02:29.6]} 16... Bxf4
{[%clk 0:01:54.9]} 17. Qxf4 {[%clk 0:02:29.6]} 17... Qd6 {[%clk 0:01:56.2]} 18.
Ne5 {[%clk 0:02:25.4]} 18... Nxe5 {[%clk 0:01:55.7]} 19. dxe5 {[%clk 0:02:26.5]}
19... Qc5+ {[%clk 0:01:55.3]} 20. Qd4 {[%clk 0:02:16.1]} 20... Qxd4+ {[%clk
0:01:54.2]} 21. cxd4 {[%clk 0:02:17.3]} 21... O-O-O {[%clk 0:01:55.3]} 22. Rb4
{[%clk 0:02:10]} 22... Rd7 {[%clk 0:01:41]} 23. c3 {[%clk 0:02:09.9]} 23... Rhd8
{[%clk 0:01:33.3]} 24. Rf2 {[%clk 0:02:08.8]} 24... Rc7 {[%clk 0:01:15.9]} 25.
Rfb2 {[%clk 0:01:58.9]} 25... b6 {[%clk 0:01:16.8]} 26. Kh2 {[%clk 0:01:55.5]}
26... c5 {[%clk 0:01:17.8]} 27. Ra4 {[%clk 0:01:49.6]} 27... cxd4 {[%clk
0:01:12.4]} 28. cxd4 {[%clk 0:01:48.9]} 28... Bd3 {[%clk 0:01:08.6]} 29. Rf2
{[%clk 0:01:31.7]} 29... Bc4 {[%clk 0:00:50.6]} 30. g6 {[%clk 0:01:31.2]} 30...
fxg6 {[%clk 0:00:46.2]} 31. Rf4 {[%clk 0:01:18.8]} 31... Bd5 {[%clk 0:00:46.8]}
32. Bh3 {[%clk 0:01:14.7]} 32... Kb7 {[%clk 0:00:45.2]} 33. Ra3 {[%clk
0:01:11.4]} 33... Rc2+ {[%clk 0:00:44.3]} 34. Kg3 {[%clk 0:01:10.8]} 34... Rdc8
{[%clk 0:00:45.5]} 35. Rf7+ {[%clk 0:01:09.6]} 35... R8c7 {[%clk 0:00:45.1]} 36.
Rxc7+ {[%clk 0:01:04.9]} 36... Rxc7 {[%clk 0:00:46.4]} 37. Kf4 {[%clk
0:00:57.2]} 37... Rc2 {[%clk 0:00:44.7]} 38. Rg3 {[%clk 0:00:49.6]} 38... Rxa2
{[%clk 0:00:34.2]} 39. Rxg6 {[%clk 0:00:49.1]} 39... a5 {[%clk 0:00:35]} 40.
Rxg7+ {[%clk 0:00:48.2]} 40... Kc6 {[%clk 0:00:36.5]} 41. Ra7 {[%clk 0:00:40.5]}
41... Rd2 {[%clk 0:00:28.3]} 42. Kg5 {[%clk 0:00:38.4]} 42... Rxd4 {[%clk
0:00:29]} 43. Re7 {[%clk 0:00:26.3]} 43... Re4 {[%clk 0:00:26.4]} 44. Kf6 {[%clk
0:00:25.6]} 44... Rxh4 {[%clk 0:00:21.7]} 45. Bxe6 {[%clk 0:00:26.6]} 45... a4
{[%clk 0:00:20.1]} 46. Bd7+ {[%clk 0:00:25.6]} 46... Kc5 {[%clk 0:00:20.6]} 47.
e6 {[%clk 0:00:25.6]} 47... a3 {[%clk 0:00:21.2]} 48. Re8 {[%clk 0:00:25.6]}
48... Rf4+ {[%clk 0:00:17.5]} 49. Ke5 {[%clk 0:00:26]} 49... Re4+ {[%clk
0:00:18.1]} 50. Kf5 {[%clk 0:00:25.5]} 50... Kd6 {[%clk 0:00:16.7]} 51. Rb8
{[%clk 0:00:20.1]} 51... a2 {[%clk 0:00:12]} 52. Rxb6+ {[%clk 0:00:20.5]} 52...
Ke7 {[%clk 0:00:12.4]} 53. Ra6 {[%clk 0:00:21.4]} 53... Re1 {[%clk 0:00:13.3]}
54. Ra7 {[%clk 0:00:21.9]} 54... a1=Q {[%clk 0:00:13.1]} 55. Ba4+ {[%clk
0:00:23]} 55... Kd6 {[%clk 0:00:14.2]} 56. Rd7+ {[%clk 0:00:19.1]} 56... Kc5
{[%clk 0:00:15.2]} 57. e7 {[%clk 0:00:18.8]} 57... Qe5+ {[%clk 0:00:08.6]} 58.
Kg6 {[%clk 0:00:19.1]} 58... Qe6+ {[%clk 0:00:07.2]} 59. Kg5 {[%clk 0:00:19.6]}
59... Qxd7 {[%clk 0:00:07]} 60. Bxd7 {[%clk 0:00:19.8]} 60... Rxe7 {[%clk
0:00:08.6]} 61. Bf5 {[%clk 0:00:21.2]} 61... Re5 {[%clk 0:00:09.1]} 62. Kf4
{[%clk 0:00:22]} 62... Kd4 {[%clk 0:00:10.3]} 63. Bh3 {[%clk 0:00:22.7]} 63...
Be6 {[%clk 0:00:07.6]} 64. Bg2 {[%clk 0:00:22.9]} 64... h4 {[%clk 0:00:08.8]}
65. Bf3 {[%clk 0:00:22.9]} 65... h3 {[%clk 0:00:10.2]} 66. Kg3 {[%clk
0:00:23.6]} 66... Ke3 {[%clk 0:00:11.4]} 67. Bh1 {[%clk 0:00:24.4]} 67... Rg5+
{[%clk 0:00:11.9]} 68. Kh2 {[%clk 0:00:25.5]} 68... Kf2 {[%clk 0:00:10]} 69. Be4
{[%clk 0:00:26.2]} 69... Bd5 {[%clk 0:00:09.2]} 70. Bd3 {[%clk 0:00:20.1]} 70...
Bg2 {[%clk 0:00:09.1]} 71. Bc4 {[%clk 0:00:19.3]} 71... Re5 {[%clk 0:00:09.7]}
72. Bf7 {[%clk 0:00:19.9]} 72... Re1 {[%clk 0:00:10.1]} 73. Bd5 {[%clk
0:00:18.6]} 73... Rh1# {[%clk 0:00:10.9]} 0-1

[Event "*** Titled Tuesday Blitz"]
[Site "Chess.com"]
[Date "2019.07.02"]
[Round "6"]
[White "amylazy"]
[Black "mitrabhaa"]
[Result "1-0"]
[WhiteElo "2425"]
[BlackElo "2687"]
[TimeControl "180+2"]
[EndTime "14:25:11 PDT"]
[Termination "amylazy won by resignation"]

1. d4 {[%clk 0:02:51.2]} 1... Nf6 {[%clk 0:02:59.6]} 2. Nf3 {[%clk 0:02:52]}
2... c5 {[%clk 0:03:00.2]} 3. d5 {[%clk 0:02:52.3]} 3... b5 {[%clk 0:03:00.3]}
4. Bg5 {[%clk 0:02:52.6]} 4... Qb6 {[%clk 0:02:54]} 5. e3 {[%clk 0:02:53.7]}
5... Bb7 {[%clk 0:02:54.3]} 6. Bxf6 {[%clk 0:02:51.8]} 6... gxf6 {[%clk
0:02:54.6]} 7. Nc3 {[%clk 0:02:50.7]} 7... a6 {[%clk 0:02:54.8]} 8. Be2 {[%clk
0:02:50.8]} 8... f5 {[%clk 0:02:55.5]} 9. a3 {[%clk 0:02:47.2]} 9... Bg7 {[%clk
0:02:56.2]} 10. O-O {[%clk 0:02:47.4]} 10... O-O {[%clk 0:02:43.3]} 11. Nh4
{[%clk 0:02:47.8]} 11... Qf6 {[%clk 0:02:42.9]} 12. g3 {[%clk 0:02:46.1]} 12...
d6 {[%clk 0:02:42.6]} 13. Bf3 {[%clk 0:02:43.5]} 13... Nd7 {[%clk 0:02:37.9]}
14. Bg2 {[%clk 0:02:42.1]} 14... Kh8 {[%clk 0:02:35.9]} 15. Qh5 {[%clk
0:02:41.1]} 15... e6 {[%clk 0:02:10.8]} 16. Rad1 {[%clk 0:02:18.7]} 16... Ne5
{[%clk 0:01:57.4]} 17. dxe6 {[%clk 0:02:18]} 17... Bxg2 {[%clk 0:01:51.8]} 18.
Kxg2 {[%clk 0:02:15.5]} 18... fxe6 {[%clk 0:01:50.5]} 19. Rxd6 {[%clk 0:02:16]}
19... Qe7 {[%clk 0:01:46.5]} 20. Rfd1 {[%clk 0:02:14]} 20... Ra7 {[%clk
0:01:34.7]} 21. f4 {[%clk 0:02:11.5]} 21... Qb7+ {[%clk 0:01:26.8]} 22. Kg1
{[%clk 0:02:06.2]} 22... Nc4 {[%clk 0:01:22.9]} 23. Ng6+ {[%clk 0:01:54.3]}
23... Kg8 {[%clk 0:01:21.2]} 24. Nxf8 {[%clk 0:01:55.3]} 24... Nxe3 {[%clk
0:01:13]} 25. Qxh7+ {[%clk 0:01:27.9]} 25... Kxf8 {[%clk 0:01:11.3]} 26. Rd8+
{[%clk 0:01:28.1]} 26... Kf7 {[%clk 0:01:10.2]} 27. Qh5+ {[%clk 0:01:24.1]}
27... Kf6 {[%clk 0:01:05.4]} 28. Qg5+ {[%clk 0:01:05.4]} 28... Kf7 {[%clk
0:01:01.7]} 29. Qh5+ {[%clk 0:01:01.4]} 29... Kf6 {[%clk 0:01:00.7]} 30. Qh4+
{[%clk 0:01:01.6]} 30... Kg6 {[%clk 0:00:58.6]} 31. R1d2 {[%clk 0:00:54.7]}
31... Qf3 {[%clk 0:00:50.7]} 32. Qg5+ {[%clk 0:00:55]} 32... Kh7 {[%clk
0:00:50.7]} 33. Qh4+ {[%clk 0:00:55]} 33... Kg6 {[%clk 0:00:51.7]} 34. Qg5+
{[%clk 0:00:52.4]} 34... Kh7 {[%clk 0:00:51.4]} 35. Rf2 {[%clk 0:00:48.6]} 35...
Qc6 {[%clk 0:00:43.1]} 36. Qh5+ {[%clk 0:00:48]} 36... Bh6 {[%clk 0:00:40.5]}
37. Rfd2 {[%clk 0:00:41.6]} 37... Rg7 {[%clk 0:00:30.8]} 38. R8d6 {[%clk
0:00:26.9]} 38... Qc8 {[%clk 0:00:30.8]} 39. Rd8 {[%clk 0:00:27.8]} 39... Qb7
{[%clk 0:00:31.1]} 40. Qe8 {[%clk 0:00:24.8]} 40... Bxf4 {[%clk 0:00:25.8]} 41.
Qh8+ {[%clk 0:00:25.1]} 41... Kg6 {[%clk 0:00:26.5]} 42. Rg8 {[%clk 0:00:24.9]}
42... Bh6 {[%clk 0:00:22.4]} 43. Rxg7+ {[%clk 0:00:24.6]} 43... Bxg7 {[%clk
0:00:23.5]} 44. Qe8+ {[%clk 0:00:24.9]} 44... Kh7 {[%clk 0:00:23.6]} 45. Qxe6
{[%clk 0:00:26]} 45... Bd4 {[%clk 0:00:24.2]} 46. h4 {[%clk 0:00:13.3]} 46...
Ng4+ {[%clk 0:00:20.4]} 47. Rxd4 {[%clk 0:00:11.7]} 47... cxd4 {[%clk
0:00:20.5]} 48. Qxf5+ {[%clk 0:00:12.6]} 48... Kh8 {[%clk 0:00:20.7]} 49. Qh5+
{[%clk 0:00:13.1]} 49... Kg7 {[%clk 0:00:20.7]} 50. Qxg4+ {[%clk 0:00:14.1]}
50... Kf8 {[%clk 0:00:21.8]} 51. Qxd4 {[%clk 0:00:15.3]} 51... Kg8 {[%clk
0:00:22.1]} 52. Qf4 {[%clk 0:00:16.9]} 52... Qb6+ {[%clk 0:00:22.4]} 53. Kh2
{[%clk 0:00:18]} 53... Qc6 {[%clk 0:00:23.9]} 54. Qe4 {[%clk 0:00:18.1]} 54...
Qh6 {[%clk 0:00:24.1]} 55. Qd5+ {[%clk 0:00:18.9]} 55... Kf8 {[%clk 0:00:24.6]}
56. Qf5+ {[%clk 0:00:20.2]} 56... Ke8 {[%clk 0:00:25.4]} 57. Qe4+ {[%clk
0:00:21.2]} 57... Kd8 {[%clk 0:00:24.8]} 58. Qd4+ {[%clk 0:00:22.2]} 58... Kc8
{[%clk 0:00:26]} 59. Ne4 {[%clk 0:00:22.8]} 59... Qc1 {[%clk 0:00:26.3]} 60.
Qc5+ {[%clk 0:00:22.2]} 60... Kd7 {[%clk 0:00:27.1]} 61. Qd6+ {[%clk 0:00:22.8]}
61... Ke8 {[%clk 0:00:27.6]} 62. Qe6+ {[%clk 0:00:23.1]} 62... Kd8 {[%clk
0:00:28.3]} 63. Qd6+ {[%clk 0:00:24]} 63... Ke8 {[%clk 0:00:29.1]} 64. Qe5+
{[%clk 0:00:24.5]} 64... Kd7 {[%clk 0:00:29.6]} 65. Qd4+ {[%clk 0:00:25.3]}
65... Ke8 {[%clk 0:00:30.5]} 66. Nd6+ {[%clk 0:00:19.1]} 66... Ke7 {[%clk
0:00:29.2]} 67. Nf5+ {[%clk 0:00:19.7]} 67... Ke6 {[%clk 0:00:30.3]} 68. Qe3+
{[%clk 0:00:20.7]} 1-0

[Event "*** Titled Tuesday Blitz"]
[Site "Chess.com"]
[Date "2019.07.02"]
[Round "6"]
[White "aa175"]
[Black "kosmeg"]
[Result "1-0"]
[WhiteElo "2281"]
[BlackElo "2459"]
[TimeControl "180+2"]
[EndTime "14:25:46 PDT"]
[Termination "aa175 won by resignation"]

1. d4 {[%clk 0:03:01.9]} 1... Nf6 {[%clk 0:03:00.5]} 2. Bf4 {[%clk 0:03:03.2]}
2... e6 {[%clk 0:02:59.5]} 3. e3 {[%clk 0:03:04.6]} 3... c5 {[%clk 0:03:00.5]}
4. c3 {[%clk 0:03:05.6]} 4... b6 {[%clk 0:03:01.9]} 5. Nd2 {[%clk 0:03:06.2]}
5... Bb7 {[%clk 0:03:03.4]} 6. Ngf3 {[%clk 0:03:06.5]} 6... Be7 {[%clk
0:03:04.6]} 7. Bd3 {[%clk 0:03:06.9]} 7... cxd4 {[%clk 0:03:06.1]} 8. exd4
{[%clk 0:03:07.8]} 8... d6 {[%clk 0:03:07.2]} 9. h3 {[%clk 0:03:07.7]} 9... Nbd7
{[%clk 0:03:08.5]} 10. O-O {[%clk 0:03:08.9]} 10... O-O {[%clk 0:03:08.8]} 11.
Qe2 {[%clk 0:03:09.3]} 11... Re8 {[%clk 0:03:09]} 12. Ne4 {[%clk 0:03:03.4]}
12... Nxe4 {[%clk 0:02:57.7]} 13. Bxe4 {[%clk 0:03:04.4]} 13... Bxe4 {[%clk
0:02:59.6]} 14. Qxe4 {[%clk 0:03:06]} 14... Nf6 {[%clk 0:03:01.2]} 15. Qe2
{[%clk 0:02:52.5]} 15... Qd7 {[%clk 0:02:56.6]} 16. Rfe1 {[%clk 0:02:47.6]}
16... b5 {[%clk 0:02:54.8]} 17. a3 {[%clk 0:02:37.5]} 17... Qc6 {[%clk
0:02:52.2]} 18. Nd2 {[%clk 0:02:29.7]} 18... a5 {[%clk 0:02:38]} 19. Qf3 {[%clk
0:02:13.9]} 19... Qxf3 {[%clk 0:02:38]} 20. Nxf3 {[%clk 0:02:13]} 20... Nd5
{[%clk 0:02:39.6]} 21. Bd2 {[%clk 0:02:10.8]} 21... Rec8 {[%clk 0:02:33.1]} 22.
Rec1 {[%clk 0:02:03.4]} 22... Rc7 {[%clk 0:02:22]} 23. Ne1 {[%clk 0:01:58.5]}
23... Rac8 {[%clk 0:02:14.1]} 24. Nd3 {[%clk 0:01:56.9]} 24... h5 {[%clk
0:02:10.4]} 25. g4 {[%clk 0:01:49.2]} 25... hxg4 {[%clk 0:02:05.7]} 26. hxg4
{[%clk 0:01:51.1]} 26... a4 {[%clk 0:01:59.9]} 27. Kg2 {[%clk 0:01:49.2]} 27...
Nb6 {[%clk 0:01:56.6]} 28. Rh1 {[%clk 0:01:33.6]} 28... Nc4 {[%clk 0:01:57.6]}
29. Bf4 {[%clk 0:01:32.4]} 29... g5 {[%clk 0:01:48]} 30. Bg3 {[%clk 0:01:29]}
30... Kg7 {[%clk 0:01:47.5]} 31. Rh5 {[%clk 0:01:26.6]} 31... Rh8 {[%clk
0:01:47.6]} 32. Rah1 {[%clk 0:01:26.5]} 32... Rxh5 {[%clk 0:01:48.5]} 33. Rxh5
{[%clk 0:01:28.4]} 33... Rc8 {[%clk 0:01:45.3]} 34. Rh1 {[%clk 0:01:08.6]} 34...
f6 {[%clk 0:01:31.2]} 35. Re1 {[%clk 0:01:03.8]} 35... Kf7 {[%clk 0:01:31.1]}
36. Re2 {[%clk 0:00:55]} 36... Bf8 {[%clk 0:01:18.7]} 37. f3 {[%clk 0:00:51.6]}
37... Nb6 {[%clk 0:01:16.3]} 38. Nb4 {[%clk 0:00:45.6]} 38... d5 {[%clk
0:01:05.3]} 39. Na6 {[%clk 0:00:36.3]} 39... Rc6 {[%clk 0:00:52.6]} 40. Nb8
{[%clk 0:00:22]} 40... Rc8 {[%clk 0:00:53.1]} 41. Na6 {[%clk 0:00:23.1]} 41...
Rc6 {[%clk 0:00:20.1]} 42. Kg1 {[%clk 0:00:14.3]} 42... Nc4 {[%clk 0:00:18.9]}
43. Nb8 {[%clk 0:00:13.1]} 43... Rc8 {[%clk 0:00:16.8]} 44. Na6 {[%clk
0:00:06.1]} 44... Bd6 {[%clk 0:00:09.5]} 45. Bxd6 {[%clk 0:00:05.2]} 45... Nxd6
{[%clk 0:00:11.4]} 46. Nc5 {[%clk 0:00:05.5]} 46... Re8 {[%clk 0:00:12.5]} 47.
Rh2 {[%clk 0:00:06]} 47... Kg7 {[%clk 0:00:12.1]} 48. Re2 {[%clk 0:00:05.9]}
48... Kf7 {[%clk 0:00:13.3]} 49. Rh2 {[%clk 0:00:06.6]} 49... Kg6 {[%clk
0:00:13.7]} 50. Re2 {[%clk 0:00:05.9]} 50... e5 {[%clk 0:00:12.8]} 51. dxe5
{[%clk 0:00:04.5]} 51... fxe5 {[%clk 0:00:14.7]} 52. Nd3 {[%clk 0:00:05.4]}
52... Kf6 {[%clk 0:00:15.5]} 53. Nb4 {[%clk 0:00:06]} 53... Ke6 {[%clk
0:00:15.6]} 54. Nc6 {[%clk 0:00:06.9]} 54... Kf6 {[%clk 0:00:15.2]} 55. Nb4
{[%clk 0:00:07.4]} 55... Ke6 {[%clk 0:00:16.1]} 56. Nc6 {[%clk 0:00:08.3]} 56...
Nc4 {[%clk 0:00:16.6]} 57. Nd4+ {[%clk 0:00:07]} 57... Kf6 {[%clk 0:00:15.3]}
58. Nxb5 {[%clk 0:00:06.7]} 58... Rb8 {[%clk 0:00:14.9]} 59. Nc7 {[%clk
0:00:07.2]} 59... Rxb2 {[%clk 0:00:13.1]} 60. Nxd5+ {[%clk 0:00:07.7]} 60... Ke6
{[%clk 0:00:14.4]} 61. Rxb2 {[%clk 0:00:08.3]} 61... Nxb2 {[%clk 0:00:15.9]} 62.
Ne3 {[%clk 0:00:07.5]} 62... Kd6 {[%clk 0:00:16.1]} 63. Kf2 {[%clk 0:00:07.7]}
63... Nd3+ {[%clk 0:00:16.2]} 64. Ke2 {[%clk 0:00:08.7]} 64... Nc5 {[%clk
0:00:16.3]} 65. Kd1 {[%clk 0:00:07.8]} 65... Ne6 {[%clk 0:00:16.2]} 66. Nc4+
{[%clk 0:00:08.3]} 66... Kd5 {[%clk 0:00:17]} 67. Nb6+ {[%clk 0:00:09.1]} 67...
Kc5 {[%clk 0:00:18]} 68. Nxa4+ {[%clk 0:00:06.9]} 68... Kc4 {[%clk 0:00:19.1]}
69. Kc2 {[%clk 0:00:06.4]} 69... Nf4 {[%clk 0:00:18.9]} 70. Nb6+ {[%clk
0:00:06.5]} 70... Kc5 {[%clk 0:00:19.9]} 71. Nd7+ {[%clk 0:00:07.4]} 71... Kd6
{[%clk 0:00:21.1]} 72. Nf6 {[%clk 0:00:08.1]} 72... Ng2 {[%clk 0:00:21]} 73.
Ne4+ {[%clk 0:00:09]} 73... Kd5 {[%clk 0:00:21.9]} 74. Nxg5 {[%clk 0:00:09.7]}
74... Nf4 {[%clk 0:00:22.2]} 75. Ne4 {[%clk 0:00:09.5]} 75... Ng2 {[%clk
0:00:22.8]} 76. Kd2 {[%clk 0:00:09.1]} 76... Nh4 {[%clk 0:00:23.3]} 77. Ke3
{[%clk 0:00:07.7]} 77... Ng6 {[%clk 0:00:24.4]} 78. g5 {[%clk 0:00:08.2]} 78...
Kc4 {[%clk 0:00:24.6]} 79. Nd6+ {[%clk 0:00:07.7]} 79... Kxc3 {[%clk 0:00:25.3]}
80. Ke4 {[%clk 0:00:08.8]} 80... Kb3 {[%clk 0:00:21.5]} 81. Nf7 {[%clk
0:00:08.9]} 81... Kxa3 {[%clk 0:00:19.2]} 82. Nxe5 {[%clk 0:00:09.9]} 82... Nh4
{[%clk 0:00:20.7]} 83. f4 {[%clk 0:00:10.3]} 83... Kb4 {[%clk 0:00:21.9]} 84. g6
{[%clk 0:00:06.7]} 84... Nf5 {[%clk 0:00:16.7]} 85. Kxf5 {[%clk 0:00:07.5]} 1-0